bitfinex-derivatives/quotes_SOLF0:USTF0_20250901
["timestamp","ask_amount","ask_price","bid_price","bid_amount"]
[1756714306561,134.8,203.56,203.51,6.10794319]
[1756714306756,134.8,203.56,203.51,2.55378938]
[1756714307157,2.33600134,203.57,203.51,2.55378938]
[1756714307355,133.42,203.56,203.41,2.33600134]
[1756714307558,128.4,203.55,203.5,6.10794319]
[1756714307756,124.2,203.54,203.5,3.55415381]
[1756714307955,124.2,203.54,203.51,2.55378938]
[1756714308156,2.33600134,203.57,203.51,2.55378938]
[1756714308466,120.2,203.56,203.51,2.55378938]
[1756714311067,117.32,203.55,203.51,6.10794319]
[1756714311763,2.33600134,203.54,203.38,2.33600134]
[1756714312069,2.33600134,203.51,203.47,3.55415381]
[1756714312264,2.33600134,203.51,203.35,2.33600134]
[1756714312265,2.33600134,203.51,203.46,6.10794319]
[1756714312466,2.33600134,203.49,203.46,6.10794319]
[1756714312666,2.33600134,203.49,203.46,2.55378938]
[1756714313366,2.33600134,203.49,203.3,330.1]
[1756714313367,2.33600134,203.49,203.33,2.33600134]
[1756714313566,2.33600134,203.49,203.28,0.85561497]
[1756714313771,2.33600134,203.49,203.42,6.10794319]
[1756714314269,2.33600134,203.46,203.3,2.33600134]
[1756714314470,127.28,203.45,203.41,6.10794319]
[1756714314671,14.75,203.57,203.41,6.10794319]
[1756714314672,134.64,203.44,203.41,6.10794319]
[1756714314864,2.33600134,203.47,203.41,2.55378938]
[1756714315069,95.12,203.46,203.33,2.33600134]
[1756714315270,95.12,203.46,203.43,6.10794319]
[1756714315470,134.64,203.46,203.45,2.55378938]
[1756714315671,134.64,203.46,203.45,6.10794319]
[1756714315870,134.64,203.46,203.45,2.55378938]
[1756714317776,134.6,203.48,203.45,6.10794319]
[1756714317976,134.6,203.48,203.46,3.55415381]
[1756714318176,134.6,203.48,203.46,2.55378938]
[1756714319278,134.6,203.48,203.36,2.33600134]
[1756714319473,134.6,203.48,203.46,2.55378938]
[1756714319976,134.56,203.48,203.46,2.55378938]
[1756714320575,2.33600134,203.52,203.46,2.55378938]
[1756714320775,134.54,203.51,203.46,2.55378938]
[1756714321178,2.33600134,203.51,203.46,2.55378938]
[1756714321380,101.16,203.5,203.46,2.55378938]
[1756714323478,2.33600134,203.52,203.46,2.55378938]
[1756714323779,2.33600134,203.54,203.48,2.55378938]
[1756714323984,134.46,203.53,203.48,6.10794319]
[1756714324281,134.46,203.53,203.48,2.55378938]
[1756714324479,2.33600134,203.56,203.48,6.10794319]
[1756714324671,2.33600134,203.56,203.4,2.33600134]
[1756714324873,14.75,203.6,203.46,2.33600134]
[1756714324874,2.33600134,203.59,203.46,2.33600134]
[1756714325077,330.36,203.6,203.54,3.55415381]
[1756714325078,134.44,203.58,203.54,3.55415381]
[1756714325278,134.44,203.58,203.54,6.10794319]
[1756714326176,134.44,203.58,203.39,2.33600134]
[1756714326177,330.36,203.6,203.55,2.55378938]
[1756714326383,134.42,203.59,203.54,6.10794319]
[1756714326781,134.4,203.58,203.55,6.10794319]
[1756714327179,330.36,203.6,203.56,6.10794319]
[1756714327376,134.38,203.59,203.58,2.55378938]
[1756714327580,464.74,203.6,203.58,2.55378938]
[1756714327780,464.74,203.6,203.58,6.10794319]
[1756714328982,134.34,203.59,203.58,6.10794319]
[1756714329386,330.36,203.6,203.58,6.10794319]
[1756714329680,2.33600134,203.69,203.59,6.10794319]
[1756714329885,123.28,203.68,203.65,3.55415381]
[1756714330087,123.28,203.68,203.66,2.55378938]
[1756714330281,123.28,203.68,203.57,2.33600134]
[1756714330486,330.32,203.73,203.5,2.33600134]
[1756714330676,134.3,203.68,203.67,2.55378938]
[1756714330880,134.3,203.68,203.58,2.33600134]
[1756714331182,134.28,203.68,203.66,6.10794319]
[1756714331580,134.28,203.68,203.66,2.55378938]
[1756714331986,134.28,203.68,203.61,0.0322449]
[1756714332288,134.28,203.68,203.62,6.10794319]
[1756714333187,330.32,203.73,203.62,2.55378938]
[1756714333188,134.2,203.67,203.62,2.55378938]
[1756714333486,134.2,203.66,203.62,2.55378938]
[1756714333686,134.2,203.66,203.62,6.10794319]
[1756714334483,2.33600134,203.67,203.62,6.13999294]
[1756714334783,134.18,203.66,203.62,6.13999294]
[1756714335284,134.21376528,203.66,203.62,6.13999294]
[1756714336486,134.14,203.65,203.63,3.55415381]
[1756714338189,134.14,203.65,203.62,0.03204975]
[1756714340291,134.02,203.64,203.62,0.03204975]
[1756714341493,0.03376528,203.66,203.62,0.03204975]
[1756714341796,0.03376528,203.66,203.64,2.55378938]
[1756714342089,126.22,203.65,203.64,2.55378938]
[1756714342990,126.22,203.65,203.64,6.10794319]
[1756714344995,133.92,203.65,203.64,6.10794319]
[1756714345492,0.03376528,203.66,203.64,6.10794319]
[1756714345691,133.91376528,203.66,203.65,3.55415381]
[1756714346695,133.89376528,203.66,203.65,3.55415381]
[1756714346893,0.03376528,203.66,203.65,6.10794319]
[1756714347690,133.82,203.7,203.65,4.05415381]
[1756714347991,133.82,203.7,203.64,2.33600134]
[1756714348186,133.8,203.72,203.69,6.07417791]
[1756714348391,133.8,203.72,203.64,2.33600134]
[1756714348797,133.8,203.72,203.71,3.55415381]
[1756714348990,133.8,203.72,203.71,2.5200241]
[1756714349189,133.8,203.72,203.66,0.03302921]
[1756714349390,330.32,203.73,203.67,6.07417791]
[1756714349596,133.78,203.72,203.67,6.07417791]
[1756714350289,133.78,203.72,203.67,2.5200241]
[1756714350492,133.78,203.72,203.66,0.03302921]
[1756714350693,133.78,203.72,203.67,2.5200241]
[1756714352501,133.78,203.72,203.67,6.07417791]
[1756714353495,330.32,203.73,203.69,6.07417791]
[1756714353701,330.32,203.73,203.72,6.07417791]
[1756714353899,463.98,203.73,203.72,6.07417791]
[1756714356795,463.98,203.73,203.7,0.03452767]
[1756714357399,2.33600134,203.72,203.7,0.03452767]
[1756714357598,133.56,203.71,203.7,0.03452767]
[1756714357807,133.56,203.71,203.7,2.55455177]
[1756714358102,133.56,203.71,203.7,6.10870558]
[1756714358303,133.56,203.71,203.7,0.03452767]
[1756714359902,330.32,203.73,203.7,6.10870558]
[1756714360098,133.5,203.72,203.7,0.03452767]
[1756714360499,133.5,203.72,203.71,2.5200241]
[1756714360702,133.5,203.72,203.7,0.03452767]
[1756714365803,330.32,203.73,203.7,0.03452767]
[1756714366007,133.34,203.72,203.7,0.03452767]
[1756714366206,330.32,203.73,203.7,0.03452767]
[1756714366409,133.34,203.72,203.7,0.03452767]
[1756714366808,133.32,203.71,203.7,0.03452767]
[1756714367304,133.32,203.71,203.7,3.58868148]
[1756714368307,133.32,203.71,203.7,0.03452767]
[1756714370101,134.7531741,203.71,203.57,1.4331741]
[1756714370302,134.7531741,203.71,203.65,6.07417791]
[1756714370505,1.4331741,203.67,203.48,3.93412697]
[1756714370701,1.4331741,203.68,203.58,1.4331741]
[1756714371007,1.4331741,203.7,203.58,1.4331741]
[1756714371212,83.44,203.67,203.66,6.07417791]
[1756714371600,1.4331741,203.7,203.66,6.07417791]
[1756714371803,133.2,203.69,203.66,6.07417791]
[1756714372204,2.33520516,203.72,203.66,6.07417791]
[1756714372703,133.2,203.71,203.66,2.5200241]
[1756714372901,133.18,203.7,203.66,2.5200241]
[1756714373109,133.18,203.7,203.66,6.07417791]
[1756714373307,2.33520516,203.72,203.66,6.07417791]
[1756714373501,133.18,203.71,203.67,3.55415381]
[1756714373706,133.18,203.71,203.67,6.07417791]
[1756714374007,133.21142463,203.71,203.67,2.55315998]
[1756714374206,133.21142463,203.71,203.67,0.03313588]
[1756714374406,2.33520516,203.69,203.67,0.03313588]
[1756714374608,133.16,203.68,203.67,0.03313588]
[1756714375008,0.03142463,203.71,203.67,0.03313588]
[1756714375316,133.14,203.68,203.67,0.03313588]
[1756714375806,0.03142463,203.71,203.67,0.03313588]
[1756714376007,133.12,203.7,203.67,0.03313588]
[1756714376412,135.45520516,203.7,203.67,0.03313588]
[1756714377009,133.1,203.69,203.67,0.03313588]
[1756714377316,0.03142463,203.71,203.67,2.55315998]
[1756714377317,133.1,203.68,203.67,2.55315998]
[1756714377705,133.08,203.68,203.67,2.55315998]
[1756714377905,133.08,203.68,203.67,6.10731379]
[1756714378515,0.03142463,203.71,203.67,6.10731379]
[1756714378715,0.03142463,203.71,203.7,3.55415381]
[1756714378912,133.09142463,203.71,203.7,6.07417791]
[1756714379317,133.09142463,203.71,203.7,3.55415381]
[1756714380412,0.03142463,203.71,203.7,3.55415381]
[1756714380613,133.05142463,203.71,203.7,6.07417791]
[1756714381018,133.03142463,203.71,203.7,6.07417791]
[1756714381216,0.03142463,203.71,203.7,6.07417791]
[1756714381413,133.03142463,203.71,203.7,6.07417791]
[1756714381917,0.03142463,203.71,203.7,6.07417791]
[1756714382118,133.01142463,203.71,203.7,6.07417791]
[1756714382520,132.99142463,203.71,203.7,6.07417791]
[1756714383821,132.99142463,203.71,203.7,2.5200241]
[1756714384022,132.99142463,203.71,203.67,0.03313588]
[1756714384321,132.99142463,203.71,203.69,2.5200241]
[1756714384522,132.99142463,203.71,203.68,3.55415381]
[1756714384721,132.99142463,203.71,203.67,3.58728969]
[1756714385431,0.03142463,203.71,203.67,0.03313588]
[1756714385618,132.9,203.7,203.67,0.03313588]
[1756714386017,330.32,203.73,203.69,6.07417791]
[1756714386223,2.33520516,203.84,203.69,2.33520516]
[1756714386619,132.86,203.83,203.77,3.55415381]
[1756714387217,132.86,203.83,203.69,2.33520516]
[1756714387420,135.19520516,203.83,203.78,0.03299113]
[1756714390134,149.94520516,203.83,203.78,0.03299113]
[1756714390928,330.06,203.86,203.78,0.03299113]
[1756714391130,132.74,203.85,203.84,3.55415381]
[1756714391427,132.74,203.85,203.78,0.03299113]
[1756714391632,132.74,203.85,203.74,2.33520516]
[1756714391934,132.74,203.85,203.81,3.55415381]
[1756714392235,3.18944445,203.84,203.79,0.03578808]
[1756714392933,0.85423929,203.84,203.79,0.03578808]
[1756714393233,2.33520516,203.82,203.64,2.33520516]
[1756714393432,2.33520516,203.78,203.73,3.55415381]
[1756714393629,117.04,203.77,203.73,3.55415381]
[1756714393835,117.04,203.77,203.64,2.33520516]
[1756714394035,117.04,203.77,203.73,3.55415381]
[1756714394437,2.33520516,203.74,203.54,3.93412697]
[1756714394732,2.33520516,203.7,203.54,2.33520516]
[1756714395032,79.72,203.69,203.62,0.03542507]
[1756714395435,2.33520516,203.68,203.62,3.55415381]
[1756714395636,2.33520516,203.68,203.63,0.0352038]
[1756714396037,2.33520516,203.68,203.52,2.33520516]
[1756714396331,2.33520516,203.67,203.63,0.03372626]
[1756714396537,329.98,203.72,203.56,2.33520516]
[1756714396737,132.64,203.71,203.65,3.55415381]
[1756714396936,329.98,203.72,203.63,0.03214642]
[1756714397132,329.98,203.72,203.65,3.55415381]
[1756714397331,2.33520516,203.7,203.63,0.03214642]
[1756714397533,2.33520516,203.67,203.63,0.03214642]
[1756714397734,132.62,203.66,203.63,0.03214642]
[1756714398027,132.62,203.65,203.64,3.55415381]
[1756714398226,132.62,203.65,203.63,0.03214642]
[1756714398426,132.62,203.65,203.64,3.55415381]
[1756714398735,2.33520516,203.7,203.64,3.55415381]
[1756714399039,132.62,203.69,203.63,0.03214642]
[1756714399337,132.62,203.69,203.64,3.55415381]
[1756714399730,132.6,203.68,203.63,0.03214642]
[1756714399932,132.6,203.68,203.65,3.55415381]
[1756714401034,132.58,203.67,203.65,3.55415381]
[1756714401534,332.31520516,203.72,203.66,3.55415381]
[1756714401737,132.58,203.71,203.66,3.55415381]
[1756714402733,132.58,203.71,203.63,0.03214642]
[1756714402936,332.31520516,203.72,203.66,3.55415381]
[1756714403134,332.31520516,203.72,203.63,0.03214642]
[1756714403135,132.56,203.7,203.63,0.03214642]
[1756714403336,132.54,203.69,203.68,3.55415381]
[1756714403837,132.54,203.69,203.5,2.33520516]
[1756714404032,2.33520516,203.65,203.5,2.33520516]
[1756714404239,132.52,203.64,203.48,2.33520516]
[1756714404434,132.52,203.64,203.43,77.33250483]
[1756714404435,132.52,203.64,203.57,0.03243675]
[1756714404739,2.33520516,203.62,203.57,0.03243675]
[1756714404943,2.33520516,203.62,203.47,2.33520516]
[1756714405243,2.33520516,203.62,203.57,0.03647845]
[1756714405742,132.5,203.61,203.58,3.55415381]
[1756714405936,132.5,203.61,203.57,0.0314259]
[1756714406140,2.33520516,203.66,203.6,3.55415381]
[1756714406345,132.5,203.65,203.6,3.55415381]
[1756714406734,132.5,203.65,203.57,0.0314259]
[1756714407042,132.5,203.65,203.6,3.55415381]
[1756714407533,132.5,203.65,203.57,0.0314259]
[1756714407734,132.5,203.65,203.6,3.55415381]
[1756714408143,132.46,203.64,203.6,3.55415381]
[1756714410143,2.33520516,203.63,203.57,0.0314259]
[1756714410445,2.33520516,203.59,203.57,0.0314259]
[1756714410745,132.44,203.58,203.57,0.0314259]
[1756714413351,2.33520516,203.61,203.57,0.0314259]
[1756714413647,84.32,203.6,203.57,0.0314259]
[1756714415639,347.06520516,203.72,203.57,0.0314259]
[1756714415843,2.33520516,203.64,203.57,0.0314259]
[1756714416042,132.36,203.63,203.6,3.55415381]
[1756714416446,132.36,203.63,203.58,0.03218652]
[1756714416645,132.36,203.63,203.6,3.55415381]
[1756714417050,132.36,203.63,203.58,0.03218652]
[1756714417248,132.36,203.63,203.6,3.55415381]
[1756714417751,132.36,203.63,203.58,0.03218652]
[1756714417952,132.36,203.63,203.6,3.55415381]
[1756714418152,132.36,203.63,203.58,0.03218652]
[1756714418452,132.36,203.63,203.6,3.55415381]
[1756714418848,2.33520516,203.61,203.58,0.03218652]
[1756714420442,132.3,203.6,203.58,0.03218652]
[1756714420845,132.3,203.6,203.44,2.33520516]
[1756714421047,127.9,203.59,203.57,3.55415381]
[1756714421353,132.26,203.58,203.57,3.55415381]
[1756714421556,2.33520516,203.62,203.57,3.55415381]
[1756714421851,132.24,203.61,203.56,0.03099053]
[1756714422042,83.42,203.6,203.56,0.03099053]
[1756714422249,83.42,203.6,203.47,2.33520516]
[1756714422749,83.42,203.6,203.59,3.55415381]
[1756714422944,85.75520516,203.6,203.45,2.33520516]
[1756714423147,85.75520516,203.6,203.51,0.03484482]
[1756714423343,85.75520516,203.6,203.56,3.55415381]
[1756714423653,85.75520516,203.6,203.55,3.55415381]
[1756714423856,86.61048368,203.6,203.55,3.55415381]
[1756714424052,2.33520516,203.57,203.43,2.33520516]
[1756714424255,2.33520516,203.57,203.29,77.16991669]
[1756714424444,2.33520516,203.54,203.52,3.55415381]
[1756714424650,2.33520516,203.54,203.39,2.33520516]
[1756714424850,2.33520516,203.54,203.53,3.55415381]
[1756714425360,2.33520516,203.54,203.39,2.33520516]
[1756714425852,2.33520516,203.54,203.51,3.55415381]
[1756714426252,2.33520516,203.54,203.31,25.78]
[1756714426449,2.33520516,203.54,203.51,3.55415381]
[1756714426652,2.33520516,203.54,203.5,3.55415381]
[1756714426850,132.16,203.53,203.5,3.55415381]
[1756714427053,132.16,203.53,203.38,2.33520516]
[1756714427252,132.16,203.53,203.5,3.55415381]
[1756714427655,132.16,203.53,203.38,2.33520516]
[1756714427846,2.33520516,203.57,203.41,2.33520516]
[1756714428051,132.14,203.56,203.53,3.55415381]
[1756714430157,2.33520516,203.57,203.53,3.55415381]
[1756714430359,132.12,203.56,203.53,3.55415381]
[1756714430556,330.26,203.58,203.55,3.55415381]
[1756714430857,132.1,203.57,203.55,3.55415381]
[1756714431153,132.1,203.57,203.42,2.33520516]
[1756714431352,332.59520516,203.58,203.55,3.55415381]
[1756714431553,132.08,203.57,203.55,3.55415381]
[1756714431855,132.08,203.57,203.42,2.33520516]
[1756714432255,132.08,203.57,203.53,3.55415381]
[1756714432657,132.08,203.57,203.42,2.33520516]
[1756714433060,132.08,203.57,203.53,3.55415381]
[1756714433955,330.26,203.58,203.54,3.55415381]
[1756714434155,132.04,203.56,203.54,3.55415381]
[1756714434459,132.04,203.56,203.44,2.33520516]
[1756714434859,132.04,203.56,203.53,3.55415381]
[1756714436762,132.04,203.56,203.33,3.9]
[1756714436963,332.59520516,203.58,203.53,3.55415381]
[1756714437163,131.96,203.57,203.53,3.55415381]
[1756714439565,131.94,203.56,203.45,2.33520516]
[1756714439762,131.94,203.56,203.55,3.55415381]
[1756714440569,131.9,203.56,203.55,3.55415381]
[1756714440765,330.26,203.58,203.55,3.55415381]
[1756714440964,131.9,203.57,203.56,3.55415381]
[1756714442064,330.26,203.58,203.56,3.55415381]
[1756714442370,0.85527852,203.6,203.47,2.33746721]
[1756714442569,80.5,203.59,203.57,3.55415381]
[1756714442766,0.85527852,203.6,203.57,3.55415381]
[1756714442966,131.86,203.58,203.44,2.33746721]
[1756714443160,131.86,203.58,203.55,3.55415381]
[1756714443367,131.86,203.58,203.54,3.55415381]
[1756714443571,131.86,203.58,203.42,2.33746721]
[1756714443968,131.86,203.58,203.52,3.55415381]
[1756714444371,131.82,203.57,203.54,3.55415381]
[1756714444666,131.82,203.57,203.45,2.33746721]
[1756714444667,0.85527852,203.6,203.48,2.33746721]
[1756714444868,78.88,203.59,203.51,2.33746721]
[1756714445069,78.88,203.58,203.51,2.33746721]
[1756714445272,131.8,203.57,203.51,2.33746721]
[1756714445473,131.8,203.57,203.53,0.0327604]
[1756714445773,131.78,203.56,203.53,0.0327604]
[1756714446168,131.78,203.56,203.55,3.55415381]
[1756714446569,331.17515242,203.64,203.55,3.55415381]
[1756714446868,131.78,203.63,203.58,3.55415381]
[1756714447572,134.11746721,203.63,203.47,2.33746721]
[1756714447874,2.33746721,203.6,203.58,0.03514802]
[1756714448173,0.03283164,203.57,203.42,2.33746721]
[1756714448365,2.33746721,203.56,203.52,3.55415381]
[1756714448568,106.36,203.55,203.42,2.33746721]
[1756714448873,106.36,203.55,203.51,3.55415381]
[1756714449079,106.36,203.55,203.42,2.33746721]
[1756714449264,106.39252846,203.55,203.51,3.55415381]
[1756714449769,106.36,203.55,203.42,2.33746721]
[1756714449969,106.39416878,203.55,203.51,3.55415381]
[1756714450170,106.36,203.55,203.51,3.55415381]
[1756714450373,106.36,203.55,203.4,2.33746721]
[1756714450665,106.39193324,203.55,203.5,3.55415381]
[1756714450870,106.39193324,203.55,203.4,2.33746721]
[1756714450871,2.33746721,203.56,203.51,3.55415381]
[1756714451067,81.15468152,203.55,203.4,2.33746721]
[1756714451273,81.15468152,203.55,203.5,3.55415381]
[1756714451472,81.12,203.55,203.5,3.55415381]
[1756714451675,81.1536243,203.55,203.5,3.55415381]
[1756714452266,81.1536243,203.55,203.4,2.33746721]
[1756714452467,95.9036243,203.55,203.34,3.97047587]
[1756714452672,2.33746721,203.53,203.47,3.55415381]
[1756714453076,14.75,203.58,203.47,3.55415381]
[1756714453377,0.03455143,203.52,203.48,3.55415381]
[1756714453674,93.94,203.51,203.47,3.55415381]
[1756714454272,93.94,203.51,203.33,3.97047587]
[1756714454273,96.27746721,203.51,203.33,2.33746721]
[1756714454577,2.33746721,203.48,203.33,2.33746721]
[1756714454778,2.33746721,203.48,203.43,3.55415381]
[1756714454977,0.03202147,203.44,203.43,3.55415381]
[1756714455276,97.81202147,203.44,203.33,2.33746721]
[1756714455480,97.81202147,203.44,203.43,3.55415381]
[1756714456380,0.03202147,203.44,203.43,3.55415381]
[1756714458675,0.03202147,203.44,203.43,4.05415381]
[1756714462676,0.03202147,203.44,203.43,0.5]
[1756714463177,0.03202147,203.44,203.43,4.05415381]
[1756714464081,0.03202147,203.44,203.43,5.48930331]
[1756714464482,0.03202147,203.44,203.43,4.05415381]
[1756714465283,0.03202147,203.44,203.43,3.55415381]
[1756714465476,63.90717097,203.44,203.41,0.03609815]
[1756714465676,1.46717097,203.44,203.41,0.03609815]
[1756714466485,131.4,203.43,203.41,0.03609815]
[1756714467784,0.03202147,203.44,203.41,0.03609815]
[1756714468184,0.03202147,203.44,203.42,3.55415381]
[1756714470790,0.03202147,203.44,203.41,0.03609815]
[1756714473290,131.37202147,203.44,203.41,0.03609815]
[1756714473490,131.37202147,203.44,203.42,3.55415381]
[1756714473686,0.03202147,203.44,203.41,0.03609815]
[1756714473990,0.03202147,203.44,203.43,3.55415381]
[1756714474785,0.03202147,203.44,203.41,0.03609815]
[1756714474992,0.03202147,203.44,203.42,3.55415381]
[1756714475886,0.03202147,203.44,203.41,0.03609815]
[1756714478894,131.24,203.43,203.41,0.03609815]
[1756714479290,131.24,203.43,203.42,3.55415381]
[1756714480093,0.03202147,203.44,203.42,3.55415381]
[1756714480394,0.03202147,203.44,203.41,0.03609815]
[1756714480587,2.34016753,203.42,203.26,2.34016753]
[1756714480787,2.34016753,203.42,203.37,3.55415381]
[1756714481200,2.34016753,203.42,203.26,2.34016753]
[1756714481496,2.34016753,203.42,203.36,3.55415381]
[1756714481898,0.0352409,203.41,203.36,3.55415381]
[1756714482291,0.0352409,203.41,203.38,3.55415381]
[1756714482495,73.66,203.4,203.38,3.55415381]
[1756714482697,73.66,203.4,203.26,2.34016753]
[1756714482897,73.66,203.4,203.37,3.55415381]
[1756714483293,73.66,203.4,203.26,2.34016753]
[1756714483494,73.66,203.4,203.37,3.55415381]
[1756714483694,73.66,203.4,203.36,3.55415381]
[1756714484094,73.6971154,203.4,203.36,3.55415381]
[1756714484898,0.0371154,203.4,203.36,3.55415381]
[1756714485296,75.62,203.39,203.24,2.34016753]
[1756714485501,75.80016753,203.38,203.34,3.55415381]
[1756714485702,75.80016753,203.38,203.24,2.34016753]
[1756714485894,73.49524705,203.38,203.33,3.55415381]
[1756714486301,2.34016753,203.36,203.16,0.85601486]
[1756714486498,2.34016753,203.33,203.17,2.34016753]
[1756714486701,2.34016753,203.33,203.11,3.97047587]
[1756714486898,2.34016753,203.33,203.15,2.34016753]
[1756714487204,2.34016753,203.33,203.26,3.55415381]
[1756714487698,0.03403428,203.32,203.15,2.34016753]
[1756714487898,62.5,203.31,203.26,3.55415381]
[1756714488105,62.5,203.31,203.06,2.34016753]
[1756714488106,2.34016753,203.3,203.14,2.34016753]
[1756714488304,2.34016753,203.3,203.26,3.55415381]
[1756714488807,2.34016753,203.3,203.14,2.34016753]
[1756714489104,2.34016753,203.3,203.26,3.55415381]
[1756714489406,0.03201119,203.24,203.13,2.34016753]
[1756714489612,0.03201119,203.24,203.12,2.34016753]
[1756714489806,62.5,203.31,203.12,2.34016753]
[1756714490004,0.0318931,203.2,203.15,2.34016753]
[1756714490407,0.52,203.29,203.19,3.55415381]
[1756714490711,0.52,203.29,203.15,2.34016753]
[1756714490712,0.03666407,203.2,203.15,2.34016753]
[1756714490912,330.54,203.35,203.18,2.34016753]
[1756714491107,131.1,203.34,203.21,2.34016753]
[1756714491412,131.1,203.34,203.28,3.55415381]
[1756714491909,330.54,203.35,203.29,3.55415381]
[1756714492105,131.1,203.34,203.24,2.34016753]
[1756714492302,0.03539902,203.33,203.24,2.34016753]
[1756714492508,330.54,203.35,203.33,3.55415381]
[1756714492717,0.03470249,203.31,203.26,0.0344639]
[1756714493214,330.54,203.35,203.3,3.55415381]
[1756714493409,0.03219289,203.31,203.25,2.34016753]
[1756714493807,0.03219289,203.31,203.3,3.55415381]
[1756714494012,0.03219289,203.31,203.28,3.55415381]
[1756714494213,330.54,203.35,203.28,3.55415381]
[1756714494406,330.54,203.35,203.15,56.22]
[1756714494407,0.03783098,203.32,203.22,2.34016753]
[1756714494608,0.03783098,203.32,203.27,0.03234065]
[1756714494903,131.06,203.34,203.18,2.34016753]
[1756714495108,0.03344227,203.32,203.26,3.55415381]
[1756714495312,0.03344227,203.32,203.25,3.55415381]
[1756714495715,131.06,203.34,203.26,3.55415381]
[1756714495915,0.03231433,203.31,203.26,3.55415381]
[1756714496111,0.03231433,203.31,203.18,2.34016753]
[1756714496312,0.03231433,203.31,203.26,3.55415381]
[1756714496513,131.04,203.3,203.25,3.55415381]
[1756714497012,131.04,203.3,203.14,330.6]
[1756714497214,131.04,203.3,203.26,3.55415381]
[1756714497714,131.07332,203.3,203.26,3.55415381]
[1756714498216,131.07332,203.3,203.27,3.55415381]
[1756714498515,0.03332,203.3,203.28,3.55415381]
[1756714499014,131.02,203.31,203.22,2.34016753]
[1756714499015,330.54,203.35,203.22,2.34016753]
[1756714499216,0.03353074,203.31,203.3,3.55415381]
[1756714499618,461.56,203.35,203.23,2.34016753]
[1756714499819,0.03482976,203.33,203.29,3.55415381]
[1756714500420,0.03482976,203.33,203.29,3.5887412]
[1756714500923,0.03482976,203.33,203.29,0.03458739]
[1756714501816,130.98,203.32,203.29,0.03458739]
[1756714502011,130.98,203.31,203.29,0.03458739]
[1756714502215,130.98,203.32,203.3,3.55415381]
[1756714502512,0.03482976,203.33,203.29,0.03458739]
[1756714503120,0.03482976,203.33,203.31,3.55415381]
[1756714503519,0.03482976,203.33,203.29,0.03458739]
[1756714503826,0.03482976,203.33,203.31,3.55415381]
[1756714504019,0.03482976,203.33,203.32,3.55415381]
[1756714504428,130.99482976,203.33,203.29,0.03458739]
[1756714504620,130.99482976,203.33,203.32,3.55415381]
[1756714504923,0.03482976,203.33,203.29,0.03458739]
[1756714505121,0.03482976,203.33,203.31,2.34016753]
[1756714505317,0.03482976,203.33,203.32,3.55415381]
[1756714505719,130.94,203.4,203.32,4.05415381]
[1756714505922,130.94,203.4,203.3,2.34016753]
[1756714506223,130.94,203.4,203.33,2.34016753]
[1756714506529,130.94,203.4,203.29,2.34016753]
[1756714506721,130.94,203.4,203.35,3.55415381]
[1756714506916,130.94,203.4,203.27,2.34016753]
[1756714507218,130.94,203.4,203.34,3.55415381]
[1756714507420,130.94,203.4,203.33,3.55415381]
[1756714508426,130.94,203.4,203.24,2.34016753]
[1756714508822,2.34016753,203.41,203.27,2.34016753]
[1756714509017,130.9,203.39,203.27,2.34016753]
[1756714509221,130.9,203.39,203.34,3.55415381]
[1756714509525,130.9,203.39,203.24,2.34016753]
[1756714509922,130.9,203.39,203.31,3.55415381]
[1756714511623,2.34016753,203.38,203.24,2.34016753]
[1756714511830,2.34016753,203.38,203.31,3.55415381]
[1756714512025,2.34016753,203.42,203.32,3.55415381]
[1756714512225,73.66,203.41,203.27,2.34016753]
[1756714512425,130.84,203.4,203.34,3.55415381]
[1756714512821,130.84,203.4,203.27,2.34016753]
[1756714513023,130.84,203.4,203.34,3.55415381]
[1756714513421,130.84,203.4,203.26,2.34016753]
[1756714513625,130.84,203.4,203.34,3.55415381]
[1756714513828,2.34016753,203.43,203.26,2.34016753]
[1756714514131,72.9,203.42,203.34,3.55415381]
[1756714514531,72.9,203.42,203.25,2.34016753]
[1756714514729,72.9,203.42,203.33,3.55415381]
[1756714515525,2.34016753,203.46,203.31,2.34016753]
[1756714515735,69.92,203.45,203.37,3.55415381]
[1756714517424,330.64,203.48,203.35,2.34016753]
[1756714517633,130.78,203.47,203.35,2.34016753]